fUSD/lending_fUSD_20240814
["ID","MTS","AMOUNT","RATE_DAILY","PERIOD"]
[334864880,1723611147721,587.94666687,0.00014509,2]
[334864881,1723611147798,1728.63,0.00014792,2]
[334864882,1723611148736,160.21768421,0.00014999,2]
[334864883,1723611151533,533.98,0.00014244,2]
[334864884,1723611151802,533.98,0.00014518,2]
[334864885,1723611151843,500.0,0.00014235,2]
[334864886,1723611152076,533.98,0.00014792,2]
[334864887,1723611152114,500.0,0.00014509,2]
[334864888,1723611152357,500.0,0.00014783,2]
[334864889,1723611153672,500.0,0.00014244,2]
[334864890,1723611153994,500.0,0.00014518,2]
[334864891,1723611154276,500.0,0.00014792,2]
[334864892,1723611155925,683.68,0.00014244,2]
[334864893,1723611156193,683.68,0.00014518,2]
[334864894,1723611156326,500.0,0.00014244,2]
[334864895,1723611156466,683.68,0.00014792,2]
[334864896,1723611156610,500.0,0.00014518,2]
[334864897,1723611156864,500.0,0.00014792,2]
[334864898,1723611157410,500.0,0.00014235,2]
[334864899,1723611157766,500.0,0.00014509,2]
[334864900,1723611158177,500.0,0.00014783,2]
[334864901,1723611159375,500.0,0.00014244,2]
[334864902,1723611159871,500.0,0.00014518,2]
[334864903,1723611160002,500.0,0.00014792,2]
[334864904,1723611161603,500.0,0.00014235,2]
[334864905,1723611163133,500.0,0.00014509,2]
[334864906,1723611163329,500.0,0.00014783,2]
[334864907,1723611166456,1047.9,0.00014244,2]
[334864908,1723611166718,1047.9,0.00014518,2]
[334864909,1723611166993,1047.9,0.00014792,2]
[334864910,1723611170321,500.0,0.00014782,2]
[334864911,1723611171060,500.0,0.00014235,2]
[334864912,1723611171308,500.0,0.00014509,2]
[334864913,1723611171615,500.0,0.00014783,2]
[334864914,1723611176662,742.16,0.00014244,2]
[334864915,1723611176932,742.16,0.00014518,2]
[334864916,1723611177225,742.16,0.00014792,2]
[334864917,1723611177543,500.0,0.00014244,2]
[334864918,1723611177849,500.0,0.00014518,2]
[334864919,1723611178120,500.0,0.00014792,2]
[334864920,1723611178375,500.0,0.00014244,2]
[334864921,1723611178673,500.0,0.00014518,2]
[334864922,1723611178961,500.0,0.00014792,2]
[334864923,1723611180937,589.66,0.00014235,2]
[334864924,1723611180997,589.66,0.00014509,2]
[334864925,1723611181193,589.66,0.00014783,2]
[334864926,1723611182426,171.7833464,0.00014235,2]
[334864927,1723611183242,500.0,0.00014244,2]
[334864928,1723611183581,500.0,0.00014518,2]
[334864929,1723611183880,500.0,0.00014792,2]
[334864930,1723611184806,650.14,0.00014235,2]
[334864931,1723611185080,650.14,0.00014509,2]
[334864932,1723611185369,650.14,0.00014783,2]
[334864933,1723611190277,500.0,0.00014244,2]
[334864934,1723611190554,500.0,0.00014518,2]
[334864935,1723611190923,500.0,0.00014792,2]
[334864936,1723611194876,500.0,0.00014244,2]
[334864937,1723611195138,500.0,0.00014518,2]
[334864938,1723611195385,500.0,0.00014792,2]
[334864939,1723611195633,2952.6,0.00014244,2]
[334864940,1723611195689,500.0,0.00014235,2]
[334864941,1723611195891,2952.6,0.00014518,2]
[334864942,1723611195960,500.0,0.00014509,2]
[334864943,1723611196218,500.0,0.00014783,2]
[334864944,1723611196254,2952.6,0.00014792,2]
[334864945,1723611200320,500.0,0.00014244,2]
[334864946,1723611200626,500.0,0.00014518,2]
[334864947,1723611200878,500.0,0.00014792,2]
[334864948,1723611206097,500.0,0.00014244,2]
[334864949,1723611206366,500.0,0.00014518,2]
[334864950,1723611206641,500.0,0.00014792,2]
[334864951,1723611206972,5580.2,0.00014244,2]
[334864952,1723611207266,5580.2,0.00014518,2]
[334864953,1723611207568,5580.2,0.00014792,2]
[334864954,1723611207928,500.0,0.00014235,2]
[334864955,1723611208234,500.0,0.00014509,2]
[334864956,1723611208486,500.0,0.00014783,2]
[334864957,1723611209833,500.0,0.00014244,2]
[334864958,1723611210219,500.0,0.00014518,2]
[334864959,1723611210487,500.0,0.00014792,2]
[334864960,1723611212868,500.0,0.00014244,2]
[334864961,1723611213144,500.0,0.00014518,2]
[334864962,1723611213413,500.0,0.00014792,2]
[334864963,1723611214650,500.0,0.00014235,2]
[334864964,1723611215078,500.0,0.00014509,2]
[334864965,1723611215350,500.0,0.00014783,2]
[334864966,1723611218247,474.88,0.00014235,2]
[334864967,1723611220399,500.0,0.00014235,2]
[334864968,1723611220656,500.0,0.00014509,2]
[334864969,1723611220918,500.0,0.00014783,2]
[334864970,1723611221135,1028.85,0.00014244,2]
[334864971,1723611221410,1028.85,0.00014518,2]
[334864972,1723611222995,1028.85,0.00014792,2]
[334864973,1723611226351,500.0,0.00014244,2]
[334864974,1723611226623,500.0,0.00014518,2]
[334864975,1723611226938,500.0,0.00014792,2]
[334864976,1723611230657,719.2,0.00014244,2]
[334864977,1723611230923,719.2,0.00014518,2]
[334864978,1723611231183,719.2,0.00014792,2]
[334864979,1723611231779,500.0,0.00014235,2]
[334864980,1723611232183,500.0,0.00014509,2]
[334864981,1723611232301,500.0,0.00014783,2]
[334864982,1723611234760,23900.0,0.00014599,2]
[334864983,1723611240401,500.0,0.00014235,2]
[334864984,1723611240673,500.0,0.00014509,2]
[334864985,1723611240935,546.80769503,0.00014783,2]
[334864986,1723611246913,500.0,0.00014235,2]
[334864987,1723611247190,500.0,0.00014509,2]
[334864988,1723611247469,500.0,0.00014783,2]
[334864989,1723611247657,500.0,0.00014244,2]
[334864990,1723611247909,500.0,0.00014518,2]
[334864991,1723611248223,500.0,0.00014792,2]
[334864992,1723611255064,1026.74,0.00014244,2]
[334864993,1723611256019,1026.74,0.00014518,2]
[334864994,1723611256080,1026.74,0.00014792,2]
[334864995,1723611257478,542.1,0.00014244,2]
[334864996,1723611257788,542.1,0.00014518,2]
[334864997,1723611258102,542.1,0.00014792,2]
[334864998,1723611258339,500.0,0.00014235,2]
[334864999,1723611258603,500.0,0.00014509,2]
[334865000,1723611258854,500.0,0.00014783,2]
[334865002,1723611265821,500.0,0.00014235,2]
[334865003,1723611265989,500.0,0.00014509,2]
[334865004,1723611266250,1672.54,0.00014244,2]
[334865005,1723611266515,1672.54,0.00014518,2]
[334865006,1723611266595,500.0,0.00014783,2]
[334865007,1723611266821,1672.54,0.00014792,2]
[334865008,1723611269699,500.0,0.00014244,2]
[334865009,1723611269969,500.0,0.00014518,2]
[334865010,1723611270217,500.0,0.00014792,2]
[334865011,1723611275537,1162.54,0.00014244,2]
[334865012,1723611275791,1162.54,0.00014518,2]
[334865013,1723611275829,500.0,0.00014244,2]
[334865014,1723611276047,1162.54,0.00014792,2]
[334865015,1723611276086,500.0,0.00014518,2]
[334865016,1723611276355,500.0,0.00014792,2]
[334865017,1723611285318,500.0,0.00014244,2]
[334865018,1723611285427,500.0,0.00014244,2]
[334865019,1723611285617,500.0,0.00014518,2]
[334865020,1723611285705,616.91,0.00014244,2]
[334865021,1723611285743,500.0,0.00014518,2]
[334865022,1723611285895,500.0,0.00014792,2]
[334865023,1723611285963,616.91,0.00014518,2]
[334865024,1723611286002,500.0,0.00014792,2]
[334865025,1723611286270,616.91,0.00014792,2]
[334865026,1723611292407,1261.74,0.00014244,2]
[334865027,1723611292554,1261.74,0.00014518,2]
[334865028,1723611292606,1261.74,0.00014792,2]
[334865029,1723611293439,500.0,0.00014244,2]
[334865030,1723611293723,500.0,0.00014518,2]
[334865031,1723611294278,500.0,0.00014792,2]
[334865032,1723611295031,665.12,0.00014244,2]
[334865033,1723611295634,665.12,0.00014518,2]
[334865034,1723611295960,665.12,0.00014792,2]
[334865035,1723611304877,500.0,0.00014244,2]
[334865036,1723611305045,500.0,0.00014518,2]
[334865037,1723611305158,500.0,0.00014244,2]
[334865038,1723611305203,500.0,0.00014792,2]
[334865039,1723611305381,500.0,0.00014518,2]
[334865040,1723611305426,500.0,0.00014244,2]
[334865041,1723611305657,500.0,0.00014792,2]
[334865042,1723611305706,500.0,0.00014518,2]
[334865043,1723611305999,500.0,0.00014792,2]
[334865044,1723611306816,844.76,0.00014235,2]
[334865045,1723611307078,844.76,0.00014509,2]
[334865046,1723611307382,844.76,0.00014783,2]
[334865047,1723611308886,500.0,0.00014244,2]
[334865048,1723611309181,500.0,0.00014518,2]
[334865049,1723611309828,500.0,0.00014792,2]
[334865050,1723611311401,500.0,0.00014244,2]
[334865051,1723611311658,500.0,0.00014518,2]
[334865053,1723611311946,500.0,0.00014792,2]
[334865054,1723611317427,500.0,0.00014235,2]
[334865055,1723611317707,500.0,0.00014509,2]
[334865056,1723611317999,500.0,0.00014783,2]
[334865057,1723611318314,500.0,0.00014244,2]
[334865058,1723611318605,500.0,0.00014518,2]
[334865059,1723611318902,500.0,0.00014792,2]
[334865060,1723611325933,663.254,0.00013698,2]
[334865061,1723611326782,500.0,0.00014244,2]
[334865062,1723611326848,500.0,0.00014518,2]
[334865063,1723611326983,500.0,0.00014792,2]
[334865064,1723611328270,567.64111678,0.00014244,2]
[334865065,1723611329322,202.34,0.00014545,2]
[334865066,1723611329371,967.23,0.00014244,2]
[334865067,1723611329767,967.23,0.00014518,2]
[334865068,1723611330173,967.23,0.00014792,2]
[334865069,1723611330891,500.0,0.00014244,2]
[334865070,1723611331136,500.0,0.00014518,2]
[334865071,1723611331339,614.12,0.00014235,2]
[334865072,1723611331402,500.0,0.00014792,2]
[334865073,1723611331593,614.12,0.00014509,2]
[334865074,1723611331865,614.12,0.00014783,2]
[334865075,1723611337387,500.0,0.00014244,2]
[334865076,1723611337553,500.0,0.00014244,2]
[334865077,1723611337712,500.0,0.00014518,2]
[334865078,1723611337824,500.0,0.00014518,2]
[334865079,1723611338061,500.0,0.00014792,2]
[334865080,1723611338123,500.0,0.00014792,2]
[334865081,1723611345406,500.0,0.00014235,2]
[334865082,1723611345684,500.0,0.00014509,2]
[334865083,1723611346337,500.0,0.00014783,2]
[334865084,1723611350533,765.81,0.00014244,2]
[334865085,1723611350728,500.0,0.00014244,2]
[334865086,1723611350823,765.81,0.00014518,2]
[334865087,1723611351009,500.0,0.00014518,2]
[334865088,1723611351082,765.81,0.00014792,2]
[334865089,1723611351340,500.0,0.00014792,2]
[334865090,1723611353821,535.86025092,0.00014988,10]
[334865091,1723611354854,500.0,0.00014235,2]
[334865092,1723611355118,500.0,0.00014509,2]
[334865093,1723611355376,500.0,0.00014783,2]
[334865094,1723611361278,500.0,0.00014244,2]
[334865095,1723611361576,500.0,0.00014518,2]
[334865096,1723611361844,500.0,0.00014792,2]
[334865097,1723611362437,756.09,0.00014235,2]
[334865098,1723611362696,756.09,0.00014509,2]
[334865099,1723611362954,756.09,0.00014783,2]
[334865100,1723611368495,165.54,0.00014566,2]
[334865101,1723611376020,500.0,0.00014235,2]
[334865102,1723611376277,500.0,0.00014509,2]
[334865103,1723611376536,500.0,0.00014783,2]
[334865104,1723611376967,834.26,0.00014244,2]
[334865105,1723611377241,834.26,0.00014518,2]
[334865106,1723611377831,834.26,0.00014792,2]
[334865107,1723611382821,746.6,0.00014235,2]
[334865108,1723611383215,746.6,0.00014509,2]
[334865109,1723611383476,746.6,0.00014783,2]
[334865110,1723611384540,692.62,0.00014244,2]
[334865111,1723611384797,692.62,0.00014518,2]
[334865112,1723611385068,692.62,0.00014792,2]
[334865113,1723611386611,250.0,0.00014544,2]
[334865114,1723611390484,500.0,0.00014244,2]
[334865115,1723611390675,500.0,0.00014518,2]
[334865116,1723611390949,500.0,0.00014792,2]
[334865117,1723611396056,810.17,0.00014235,2]
[334865118,1723611396349,810.17,0.00014509,2]
[334865119,1723611396606,810.17,0.00014783,2]
[334865120,1723611397666,500.0,0.00014244,2]
[334865121,1723611398002,500.0,0.00014518,2]
[334865122,1723611398450,500.0,0.00014792,2]
[334865123,1723611408164,549.46,0.00014244,2]
[334865124,1723611408742,549.46,0.00014518,2]
[334865125,1723611408845,549.46,0.00014792,2]
[334865126,1723611411902,478.26,0.00012638,2]
[334865127,1723611412125,478.26,0.00014902,2]
[334865128,1723611412668,250.0,0.00014556,2]
[334865129,1723611417365,500.0,0.00014244,2]
[334865130,1723611417680,500.0,0.00014518,2]
[334865133,1723611417893,500.0,0.00014792,2]
[334865134,1723611425066,751.41,0.00014235,2]
[334865135,1723611425471,751.41,0.00014509,2]
[334865136,1723611425615,751.41,0.00014783,2]
[334865137,1723611433216,2386.53343546,0.00014988,2]
[334865138,1723611433695,500.0,0.00014235,2]
[334865139,1723611433981,500.0,0.00014509,2]
[334865140,1723611434248,500.0,0.00014783,2]
[334865141,1723611435670,500.0,0.00014244,2]
[334865142,1723611435925,603.76,0.00014518,2]
[334865143,1723611441292,500.0,0.00014244,2]
[334865144,1723611441542,500.0,0.00014518,2]
[334865145,1723611441842,500.0,0.00014792,2]
[334865146,1723611445580,1050.89,0.00014235,2]
[334865147,1723611445841,1050.89,0.00014509,2]
[334865148,1723611446119,1050.89,0.00014783,2]
[334865149,1723611453908,559.83,0.00014235,2]
[334865150,1723611454167,559.83,0.00014509,2]
[334865151,1723611454430,559.83,0.00014783,2]
[334865152,1723611459779,584.83,0.00014244,2]
[334865153,1723611460069,584.83,0.00014518,2]
[334865154,1723611460623,584.83,0.00014792,2]
[334865155,1723611463576,500.0,0.00014235,2]
[334865156,1723611463824,500.0,0.00014509,2]
[334865157,1723611464108,500.0,0.00014783,2]
[334865158,1723611469383,446.56,0.00014534,2]
[334865159,1723611469886,633.55,0.00014244,2]
[334865160,1723611470154,633.55,0.00014518,2]
[334865161,1723611470444,633.55,0.00014792,2]
[334865162,1723611471305,500.0,0.00014235,2]
[334865163,1723611471456,500.0,0.00014509,2]
[334865164,1723611472246,500.0,0.00014783,2]
[334865165,1723611478828,500.0,0.00014244,2]
[334865166,1723611479621,500.0,0.00014518,2]
[334865167,1723611479902,500.0,0.00014792,2]
[334865168,1723611487370,601.51,0.00014244,2]
[334865169,1723611487663,601.51,0.00014518,2]
[334865170,1723611487925,601.51,0.00014792,2]
[334865171,1723611500922,500.0,0.00014244,2]
[334865172,1723611501196,500.0,0.00014518,2]
[334865173,1723611501465,500.0,0.00014792,2]
[334865174,1723611503887,173.52142141,0.00014956,2]
[334865175,1723611509774,500.0,0.00014244,2]
[334865176,1723611510173,500.0,0.00014518,2]
[334865177,1723611510460,500.0,0.00014792,2]
[334865178,1723611514709,200.0,0.0001453,2]
[334865179,1723611521789,500.0,0.00014244,2]
[334865180,1723611523433,500.0,0.00014518,2]
[334865181,1723611523502,500.0,0.00014792,2]
[334865182,1723611527979,500.0,0.00014782,2]
[334865183,1723611535958,500.0,0.00014244,2]
[334865184,1723611536242,500.0,0.00014518,2]
[334865185,1723611536511,500.0,0.00014792,2]
[334865186,1723611542185,500.0,0.00014244,2]
[334865187,1723611542618,500.0,0.00014518,2]
[334865188,1723611542916,500.0,0.00014792,2]
[334865189,1723611547593,500.0,0.00014244,2]
[334865190,1723611547897,500.0,0.00014518,2]
[334865191,1723611548203,500.0,0.00014792,2]
[334865192,1723611565052,500.0,0.00014244,2]
[334865193,1723611565198,500.0,0.00014518,2]
[334865194,1723611565473,500.0,0.00014792,2]
[334865195,1723611574930,500.0,0.00014244,2]
[334865196,1723611575528,500.0,0.00014518,2]
[334865197,1723611575818,500.0,0.00014792,2]
[334865198,1723611581265,500.0,0.00014244,2]
[334865199,1723611581526,500.0,0.00014518,2]
[334865200,1723611581786,500.0,0.00014792,2]
[334865201,1723611589840,500.0,0.00014244,2]
[334865202,1723611590431,500.0,0.00014518,2]
[334865203,1723611590697,500.0,0.00014792,2]
[334865204,1723611602892,500.0,0.00014244,2]
[334865205,1723611603829,500.0,0.00014518,2]
[334865206,1723611604129,500.0,0.00014792,2]
[334865207,1723611631687,523.13167423,0.00014988,2]
[334865209,1723611685004,5001.8208445,0.00014988,2]
[334865210,1723611794364,195.58547913,0.00014999,2]
[334865213,1723611819231,1126.37360323,0.00014699,2]
[334865216,1723611844138,173.52142139,0.00014956,2]
[334865217,1723611850112,522.85661593,0.00014988,2]
[334865220,1723611864359,202.34,0.00014256,2]
[334865221,1723611878284,751.06,0.00013973,2]
[334865222,1723611893700,187.9,0.00014254,2]
[334865223,1723611908608,183747.90868683,0.00013973,2]
[334865225,1723611943908,1732.12740772,0.00013973,2]
[334865226,1723611944148,642.75,0.00014254,2]
[334865227,1723611944605,1034.50268757,0.00013973,2]
[334865228,1723611951843,961.55291744,0.00013973,2]
[334865229,1723611953547,155.0,0.00014999,2]
[334865230,1723611958690,1237.049,0.00013973,2]
[334865231,1723611968539,155.0,0.00014999,2]
[334865232,1723611970349,2887.79544079,0.00013973,2]
[334865233,1723612031430,529.55,0.00012283,2]
[334865234,1723612031635,529.55,0.00014547,2]
[334865235,1723612144896,11499.0,0.000149,5]
[334865236,1723612174564,173.52142139,0.00014956,2]
[334865237,1723612184717,1364.12277784,0.00014657,2]
[334865238,1723612190148,309.22847159,0.00014957,2]
[334865239,1723612200590,546.87070022,0.00014988,2]
[334865244,1723612231593,-1000.0,0.00015046,2]
[334865245,1723612231603,-300.0,0.00015046,2]
[334865246,1723612231612,-3851.0318562,0.00015047,2]
[334865247,1723612231623,-7226.18825408,0.00015047,2]
[334865248,1723612231655,-2300.0,0.00015047,2]
[334865249,1723612231667,-903.92013879,0.00015047,2]
[334865250,1723612231678,-15563.84535004,0.00015047,2]
[334865251,1723612231729,-286.18192272,0.00015047,2]
[334865252,1723612231744,-4901.28230527,0.00015047,2]
[334865253,1723612231753,-1000.0,0.00015047,2]
[334865254,1723612231827,-1000.0,0.00015048,2]
[334865255,1723612231837,-1000.0,0.0001505,2]
[334865256,1723612231846,-1000.0,0.00015052,2]
[334865257,1723612231856,-212.0,0.00015054,2]
[334865259,1723612231865,-1000.0,0.00015055,2]
[334865261,1723612231876,-1000.0,0.00015055,2]
[334865262,1723612231885,-679.42,0.00015055,2]
[334865263,1723612231894,-3528.29,0.00015055,2]
[334865264,1723612231905,-500.0,0.00015055,2]
[334865265,1723612231915,-500.0,0.00015055,2]
[334865266,1723612231924,-691.16,0.00015055,2]
[334865267,1723612231933,-1005.56,0.00015055,2]
[334865268,1723612231943,-500.0,0.00015055,2]
[334865269,1723612231953,-500.0,0.00015055,2]
[334865270,1723612231963,-1364.96,0.00015055,2]
[334865271,1723612231973,-500.0,0.00015055,2]
[334865272,1723612231983,-1876.01,0.00015055,2]
[334865273,1723612231993,-717.17,0.00015055,2]
[334865274,1723612232003,-986.79,0.00015055,2]
[334865275,1723612232012,-500.0,0.00015055,2]
[334865276,1723612232022,-743.86,0.00015055,2]
[334865277,1723612232031,-3802.43,0.00015055,2]
[334865278,1723612232041,-1359.64,0.00015055,2]
[334865279,1723612232050,-880.32,0.00015055,2]
[334865280,1723612232059,-645.2,0.00015055,2]
[334865281,1723612232069,-646.12,0.00015055,2]
[334865282,1723612232078,-1060.97,0.00015055,2]
[334865283,1723612232087,-1068.72,0.00015055,2]
[334865284,1723612232096,-1153.61,0.00015055,2]
[334865285,1723612232105,-1894.32,0.00015055,2]
[334865286,1723612232114,-500.0,0.00015055,2]
[334865287,1723612232124,-1334.77,0.00015055,2]
[334865288,1723612232133,-500.0,0.00015056,2]
[334865289,1723612232142,-500.0,0.00015056,2]
[334865290,1723612232151,-500.0,0.00015056,2]
[334865291,1723612232161,-500.0,0.00015056,2]
[334865292,1723612232170,-500.0,0.00015056,2]
[334865293,1723612232179,-500.0,0.00015056,2]
[334865294,1723612232188,-500.0,0.00015056,2]
[334865295,1723612232198,-500.0,0.00015056,2]
[334865296,1723612232208,-500.0,0.00015056,2]
[334865297,1723612232217,-612.29,0.00015056,2]
[334865298,1723612232226,-500.0,0.00015056,2]
[334865299,1723612232235,-500.0,0.00015056,2]
[334865300,1723612232245,-500.0,0.00015056,2]
[334865301,1723612232254,-564.48,0.00015056,2]
[334865302,1723612232263,-500.0,0.00015056,2]
[334865303,1723612232273,-500.0,0.00015056,2]
[334865304,1723612232283,-500.0,0.00015056,2]
[334865305,1723612232293,-322.95017182,0.00015056,2]
[334865306,1723612232303,-500.0,0.00015056,2]
[334865307,1723612232312,-500.0,0.00015056,2]
[334865308,1723612232322,-500.0,0.00015056,2]
[334865309,1723612232331,-500.0,0.00015056,2]
[334865310,1723612232340,-318.90269935,0.00015056,2]
[334865311,1723612232350,-500.0,0.00015056,2]
[334865312,1723612232359,-500.0,0.00015056,2]
[334865313,1723612232368,-500.0,0.00015056,2]
[334865314,1723612232378,-500.0,0.00015056,2]
[334865315,1723612232387,-500.0,0.00015056,2]
[334865316,1723612232397,-504.15,0.00015056,2]
[334865317,1723612232406,-500.0,0.00015056,2]
[334865318,1723612232415,-500.0,0.00015056,2]
[334865319,1723612232425,-280.76503016,0.00015056,2]
[334865320,1723612232435,-500.0,0.00015056,2]
[334865321,1723612232445,-500.0,0.00015056,2]
[334865322,1723612232455,-467.76907929,0.00015056,2]
[334865323,1723612232464,-500.0,0.00015056,2]
[334865324,1723612232474,-500.0,0.00015056,2]
[334865325,1723612232483,-500.0,0.00015056,2]
[334865326,1723612232493,-500.0,0.00015056,2]
[334865327,1723612232503,-500.0,0.00015056,2]
[334865328,1723612232512,-500.0,0.00015056,2]
[334865329,1723612232523,-500.0,0.00015056,2]
[334865330,1723612232532,-500.0,0.00015056,2]
[334865331,1723612232541,-500.0,0.00015056,2]
[334865332,1723612232550,-500.0,0.00015056,2]
[334865333,1723612232559,-500.0,0.00015056,2]
[334865334,1723612232569,-500.0,0.00015056,2]
[334865335,1723612232578,-500.0,0.00015056,2]
[334865336,1723612232588,-500.0,0.00015056,2]
[334865337,1723612232597,-154.76253226,0.00015056,2]
[334865338,1723612232607,-315.02341149,0.00015056,2]
[334865339,1723612232616,-500.0,0.00015056,2]
[334865340,1723612232626,-500.0,0.00015056,2]
[334865341,1723612232635,-500.0,0.00015056,2]
[334865342,1723612232644,-500.0,0.00015056,2]
[334865343,1723612232653,-500.0,0.00015056,2]
[334865344,1723612232662,-500.0,0.00015056,2]
[334865345,1723612232671,-154.53202361,0.00015056,2]
[334865346,1723612232681,-500.0,0.00015056,2]
[334865347,1723612232691,-500.0,0.00015056,2]
[334865348,1723612232701,-500.0,0.00015056,2]
[334865349,1723612232711,-500.0,0.00015056,2]
[334865350,1723612232722,-500.0,0.00015056,2]
[334865351,1723612232731,-500.0,0.00015056,2]
[334865352,1723612232741,-500.0,0.00015056,2]
[334865353,1723612232751,-500.0,0.00015056,2]
[334865354,1723612232760,-500.0,0.00015056,2]
[334865355,1723612232770,-500.0,0.00015056,2]
[334865356,1723612232780,-500.0,0.00015056,2]
[334865357,1723612232789,-500.0,0.00015056,2]
[334865358,1723612232799,-500.0,0.00015056,2]
[334865359,1723612232809,-500.0,0.00015056,2]
[334865360,1723612232820,-649.39,0.00015056,2]
[334865361,1723612232830,-3136.1,0.00015056,2]
[334865362,1723612232839,-500.0,0.00015056,2]
[334865363,1723612232849,-500.0,0.00015056,2]
[334865364,1723612232858,-500.0,0.00015056,2]
[334865365,1723612232867,-500.0,0.00015056,2]
[334865366,1723612232877,-500.0,0.00015056,2]
[334865367,1723612232886,-500.0,0.00015056,2]
[334865368,1723612232895,-500.0,0.00015056,2]
[334865369,1723612232905,-500.0,0.00015056,2]
[334865370,1723612232915,-500.0,0.00015056,2]
[334865371,1723612232924,-585.77,0.00015056,2]
[334865372,1723612232933,-500.0,0.00015056,2]
[334865373,1723612232942,-500.0,0.00015056,2]
[334865374,1723612232951,-500.0,0.00015056,2]
[334865375,1723612232962,-500.0,0.00015056,2]
[334865376,1723612232971,-500.0,0.00015056,2]
[334865377,1723612232981,-500.0,0.00015056,2]
[334865378,1723612232990,-900.25,0.00015056,2]
[334865379,1723612233000,-699.7,0.00015056,2]
[334865380,1723612233009,-500.0,0.00015056,2]
[334865381,1723612233019,-734.78,0.00015056,2]
[334865382,1723612233029,-500.0,0.00015056,2]
[334865383,1723612233039,-500.0,0.00015056,2]
[334865384,1723612233049,-331.64,0.00015056,2]
[334865385,1723612233060,-500.0,0.00015056,2]
[334865386,1723612233070,-500.0,0.00015056,2]
[334865387,1723612233079,-500.0,0.00015056,2]
[334865388,1723612233089,-510.57,0.00015056,2]
[334865389,1723612233098,-898.39,0.00015056,2]
[334865390,1723612233108,-154.456777,0.00015056,2]
[334865391,1723612233117,-156.241626,0.00015056,2]
[334865392,1723612233126,-500.0,0.00015056,2]
[334865393,1723612233136,-500.0,0.00015056,2]
[334865394,1723612233145,-500.0,0.00015056,2]
[334865395,1723612233155,-500.0,0.00015056,2]
[334865396,1723612233164,-887.63,0.00015056,2]
[334865397,1723612233174,-252.81112,0.00015056,2]